[Event "*** MasterClass Titled Tuesday Blitz"]
[Site "Chess.com"]
[Date "2017.11.07"]
[Round "3"]
[White "LastHeroJr"]
[Black "platy3"]
[Result "1-0"]
[WhiteElo "2380"]
[BlackElo "2526"]
[TimeControl "180+2"]
[EndTime "14:47:00 PST"]
[Termination "LastHeroJr won by resignation"]

1. e4 {[%clk 0:03:01.9]} 1... c6 {[%clk 0:03:00.4]} 2. d4 {[%clk 0:03:02.3]}
2... d5 {[%clk 0:03:02]} 3. e5 {[%clk 0:03:03.6]} 3... Bf5 {[%clk 0:03:02.9]} 4.
Nf3 {[%clk 0:03:04.9]} 4... e6 {[%clk 0:03:04]} 5. Be2 {[%clk 0:03:06]} 5... Nd7
{[%clk 0:03:05]} 6. O-O {[%clk 0:03:06.3]} 6... Ne7 {[%clk 0:03:06.3]} 7. a4
{[%clk 0:03:06.3]} 7... h6 {[%clk 0:03:05.5]} 8. a5 {[%clk 0:03:06.7]} 8... a6
{[%clk 0:03:07]} 9. b4 {[%clk 0:03:07.7]} 9... g5 {[%clk 0:03:06]} 10. Ne1
{[%clk 0:03:06.5]} 10... Bg6 {[%clk 0:03:04.2]} 11. Nd3 {[%clk 0:03:02.3]} 11...
Nf5 {[%clk 0:03:04.1]} 12. c3 {[%clk 0:03:03.4]} 12... h5 {[%clk 0:02:57]} 13.
Re1 {[%clk 0:02:54.6]} 13... Be7 {[%clk 0:02:57.1]} 14. Nd2 {[%clk 0:02:50.7]}
14... g4 {[%clk 0:02:49.2]} 15. Nb3 {[%clk 0:02:48]} 15... Bg5 {[%clk
0:02:43.7]} 16. Bf4 {[%clk 0:02:46.5]} 16... Bxf4 {[%clk 0:02:43.2]} 17. Nxf4
{[%clk 0:02:47.4]} 17... Qg5 {[%clk 0:02:44.5]} 18. Qd2 {[%clk 0:02:38.5]} 18...
h4 {[%clk 0:02:39.6]} 19. Rad1 {[%clk 0:02:20.1]} 19... g3 {[%clk 0:02:34]} 20.
fxg3 {[%clk 0:02:18.5]} 20... hxg3 {[%clk 0:02:34.7]} 21. h3 {[%clk 0:02:18.7]}
21... Rh4 {[%clk 0:02:32]} 22. Rf1 {[%clk 0:02:17.5]} 22... O-O-O {[%clk
0:02:24]} 23. Bd3 {[%clk 0:02:03]} 23... Kb8 {[%clk 0:02:15.4]} 24. Ne2 {[%clk
0:01:50.3]} 24... Qe3+ {[%clk 0:02:07.3]} 25. Kh1 {[%clk 0:01:42.9]} 25... Qxd2
{[%clk 0:01:48]} 26. Rxd2 {[%clk 0:01:39.3]} 26... Ne3 {[%clk 0:01:49.2]} 27.
Rf3 {[%clk 0:01:34.7]} 27... Nc4 {[%clk 0:01:50.5]} 28. Ra2 {[%clk 0:01:08.8]}
28... Ndxe5 {[%clk 0:01:45.3]} 29. dxe5 {[%clk 0:01:08]} 29... Nxe5 {[%clk
0:01:47.2]} 30. Bxg6 {[%clk 0:01:08.3]} 30... Nxf3 {[%clk 0:01:48.8]} 31. Bxf7
{[%clk 0:01:05.9]} 31... Ng5 {[%clk 0:01:05.8]} 32. Bg6 {[%clk 0:01:06.6]} 32...
Rh6 {[%clk 0:01:03.2]} 33. Bb1 {[%clk 0:01:01.1]} 33... e5 {[%clk 0:01:00.2]}
34. Nxg3 {[%clk 0:01:01.6]} 34... e4 {[%clk 0:01:01.8]} 35. Rf2 {[%clk
0:00:58.5]} 35... Ne6 {[%clk 0:01:02.1]} 36. Nd4 {[%clk 0:00:54.4]} 36... c5
{[%clk 0:00:47.2]} 37. Nxe6 {[%clk 0:00:50]} 37... Rxe6 {[%clk 0:00:49.1]} 38.
bxc5 {[%clk 0:00:51.3]} 38... Rc8 {[%clk 0:00:50.6]} 39. c4 {[%clk 0:00:50.5]}
39... dxc4 {[%clk 0:00:39]} 40. Nxe4 {[%clk 0:00:49.4]} 40... c3 {[%clk
0:00:31.7]} 41. Kh2 {[%clk 0:00:43.4]} 41... Re5 {[%clk 0:00:21.9]} 42. g4
{[%clk 0:00:39.8]} 42... Rd8 {[%clk 0:00:22.4]} 43. Kg3 {[%clk 0:00:35.8]} 43...
Rd1 {[%clk 0:00:20.7]} 44. Bc2 {[%clk 0:00:35.3]} 44... Ra1 {[%clk 0:00:12.4]}
45. g5 {[%clk 0:00:32.8]} 45... Ra2 {[%clk 0:00:08.7]} 46. g6 {[%clk 0:00:28.3]}
46... Re6 {[%clk 0:00:09.8]} 47. Nxc3 {[%clk 0:00:18.5]} 47... Ra3 {[%clk
0:00:09.5]} 48. Rf3 {[%clk 0:00:18.2]} 48... Re7 {[%clk 0:00:03]} 49. h4 {[%clk
0:00:17.1]} 49... Rxa5 {[%clk 0:00:02.3]} 50. Ne4 {[%clk 0:00:14.4]} 50... Ra2
{[%clk 0:00:03.4]} 51. Bd3 {[%clk 0:00:14.9]} 51... Ra1 {[%clk 0:00:04]} 52. h5
{[%clk 0:00:13]} 52... Rh1 {[%clk 0:00:05.3]} 53. Kg4 {[%clk 0:00:13.3]} 53...
Rg1+ {[%clk 0:00:06]} 54. Kf5 {[%clk 0:00:14.4]} 54... Rh1 {[%clk 0:00:07.6]}
55. Kg5 {[%clk 0:00:15.7]} 55... Re5+ {[%clk 0:00:08.6]} 56. Rf5 {[%clk
0:00:13.6]} 56... Rxh5+ {[%clk 0:00:04.3]} 57. Kxh5 {[%clk 0:00:14.5]} 57...
Rxf5+ {[%clk 0:00:05.9]} 58. Kg4 {[%clk 0:00:14.4]} 58... Rf8 {[%clk 0:00:04.7]}
59. Bc4 {[%clk 0:00:15.3]} 59... Re8 {[%clk 0:00:02.7]} 60. Nf6 {[%clk 0:00:13]}
60... Re7 {[%clk 0:00:03.9]} 61. Kf5 {[%clk 0:00:08.8]} 61... b6 {[%clk
0:00:05.1]} 62. cxb6 {[%clk 0:00:08.5]} 62... Kb7 {[%clk 0:00:06.7]} 63. Nd5
{[%clk 0:00:09.3]} 63... Re1 {[%clk 0:00:06]} 64. Kf6 {[%clk 0:00:08.6]} 64...
Rg1 {[%clk 0:00:06]} 65. g7 {[%clk 0:00:09.3]} 65... a5 {[%clk 0:00:06.4]} 66.
Bb5 {[%clk 0:00:08.6]} 66... Rg2 {[%clk 0:00:03.9]} 67. Kf7 {[%clk 0:00:07.7]}
67... Rf2+ {[%clk 0:00:05.3]} 68. Ke8 {[%clk 0:00:04.3]} 68... Rg2 {[%clk
0:00:06.6]} 69. Kf8 {[%clk 0:00:05.5]} 69... Rf2+ {[%clk 0:00:08.1]} 70. Kg8
{[%clk 0:00:06.7]} 70... Rg2 {[%clk 0:00:09.7]} 71. Be8 {[%clk 0:00:04.7]} 71...
Rg1 {[%clk 0:00:10.1]} 72. Kf8 {[%clk 0:00:05.3]} 72... Rf1+ {[%clk 0:00:11.4]}
73. Bf7 {[%clk 0:00:06.5]} 73... Rg1 {[%clk 0:00:07.7]} 74. g8=Q {[%clk
0:00:04.7]} 74... Rxg8+ {[%clk 0:00:09.3]} 75. Bxg8 {[%clk 0:00:06.6]} 75... a4
{[%clk 0:00:11.2]} 76. Bh7 {[%clk 0:00:07.7]} 76... a3 {[%clk 0:00:12.8]} 77.
Bb1 {[%clk 0:00:08.6]} 77... Kc6 {[%clk 0:00:14.3]} 78. Ba2 {[%clk 0:00:09.1]}
1-0

[Event "*** MasterClass Titled Tuesday Blitz"]
[Site "Chess.com"]
[Date "2017.11.07"]
[Round "3"]
[White "MFBerna"]
[Black "Maitreia"]
[Result "1/2-1/2"]
[WhiteElo "2317"]
[BlackElo "2472"]
[TimeControl "180+2"]
[EndTime "14:47:18 PST"]
[Termination "Game drawn by stalemate"]

1. e4 {[%clk 0:03:01.9]} 1... c5 {[%clk 0:02:59.3]} 2. Nf3 {[%clk 0:03:02.8]}
2... g6 {[%clk 0:02:58.7]} 3. g3 {[%clk 0:03:00.1]} 3... Bg7 {[%clk 0:02:59.2]}
4. Bg2 {[%clk 0:03:01.6]} 4... Nc6 {[%clk 0:03:00.7]} 5. O-O {[%clk 0:03:02.8]}
5... Nf6 {[%clk 0:03:02.2]} 6. Nc3 {[%clk 0:03:02.6]} 6... O-O {[%clk
0:03:03.3]} 7. Re1 {[%clk 0:03:02.1]} 7... d6 {[%clk 0:03:04]} 8. d3 {[%clk
0:03:02.9]} 8... Rb8 {[%clk 0:03:04.2]} 9. a4 {[%clk 0:03:03.7]} 9... a6 {[%clk
0:03:05.3]} 10. Nh4 {[%clk 0:03:01.7]} 10... b5 {[%clk 0:03:03.7]} 11. axb5
{[%clk 0:03:03.6]} 11... axb5 {[%clk 0:03:05.6]} 12. f4 {[%clk 0:03:04.4]} 12...
b4 {[%clk 0:03:06.8]} 13. Ne2 {[%clk 0:03:04.1]} 13... Qb6 {[%clk 0:03:07.3]}
14. Kh1 {[%clk 0:03:01.7]} 14... Bb7 {[%clk 0:02:52.2]} 15. h3 {[%clk
0:02:53.8]} 15... Ra8 {[%clk 0:02:52.2]} 16. Be3 {[%clk 0:02:46.5]} 16... Rxa1
{[%clk 0:02:48.2]} 17. Qxa1 {[%clk 0:02:48.4]} 17... Ra8 {[%clk 0:02:48.8]} 18.
Qc1 {[%clk 0:02:48.8]} 18... Nd7 {[%clk 0:02:44.1]} 19. Nf3 {[%clk 0:02:46.4]}
19... Ra2 {[%clk 0:02:43.5]} 20. c3 {[%clk 0:02:44.6]} 20... bxc3 {[%clk
0:02:29]} 21. bxc3 {[%clk 0:02:45]} 21... Ba6 {[%clk 0:02:29.2]} 22. c4 {[%clk
0:02:26.9]} 22... Nb4 {[%clk 0:02:26.6]} 23. Qb1 {[%clk 0:02:19]} 23... Ra1
{[%clk 0:02:21.9]} 24. Qb3 {[%clk 0:02:19.5]} 24... Qa5 {[%clk 0:02:15]} 25.
Rxa1 {[%clk 0:02:06.2]} 25... Qxa1+ {[%clk 0:02:16.9]} 26. Kh2 {[%clk
0:02:07.4]} 26... Nb6 {[%clk 0:02:03.1]} 27. e5 {[%clk 0:01:54.8]} 27... Qa4
{[%clk 0:01:51.4]} 28. Qb1 {[%clk 0:01:31.3]} 28... Qc2 {[%clk 0:01:44.1]} 29.
Qxc2 {[%clk 0:01:32.4]} 29... Nxc2 {[%clk 0:01:46]} 30. Bd2 {[%clk 0:01:28.1]}
30... Nb4 {[%clk 0:01:43.1]} 31. Nc1 {[%clk 0:01:16.5]} 31... Na4 {[%clk
0:01:39.2]} 32. exd6 {[%clk 0:01:07.3]} 32... exd6 {[%clk 0:01:41.1]} 33. Ng5
{[%clk 0:01:00]} 33... Bb2 {[%clk 0:01:15.2]} 34. Bxb4 {[%clk 0:00:47.1]} 34...
cxb4 {[%clk 0:01:17.1]} 35. Nb3 {[%clk 0:00:46.1]} 35... Nc5 {[%clk 0:01:13.4]}
36. Na5 {[%clk 0:00:32.5]} 36... h6 {[%clk 0:01:07.2]} 37. Ne4 {[%clk
0:00:31.1]} 37... Bc3 {[%clk 0:00:35.8]} 38. Kg1 {[%clk 0:00:22.3]} 38... Nxd3
{[%clk 0:00:28.1]} 39. Nxd6 {[%clk 0:00:23.2]} 39... Kf8 {[%clk 0:00:24.3]} 40.
Bd5 {[%clk 0:00:23.3]} 40... f5 {[%clk 0:00:18.7]} 41. Kf1 {[%clk 0:00:22.7]}
41... Nc5 {[%clk 0:00:16.5]} 42. Ke2 {[%clk 0:00:21.4]} 42... b3 {[%clk
0:00:17.6]} 43. Nxb3 {[%clk 0:00:19.9]} 43... Nxb3 {[%clk 0:00:19.5]} 44. Kd3
{[%clk 0:00:19]} 44... Bb4 {[%clk 0:00:14.9]} 45. Nf7 {[%clk 0:00:17.5]} 45...
h5 {[%clk 0:00:12.9]} 46. Ne5 {[%clk 0:00:18.6]} 46... Kg7 {[%clk 0:00:13.1]}
47. Ke3 {[%clk 0:00:17.1]} 47... Bc5+ {[%clk 0:00:14.2]} 48. Kd3 {[%clk
0:00:18.2]} 48... Bd6 {[%clk 0:00:13.5]} 49. Nc6 {[%clk 0:00:11.9]} 49... Nc5+
{[%clk 0:00:13.2]} 50. Kd4 {[%clk 0:00:12.2]} 50... Nd7 {[%clk 0:00:15.1]} 51.
Nd8 {[%clk 0:00:07.6]} 51... Bc5+ {[%clk 0:00:15.9]} 52. Kc3 {[%clk 0:00:07.7]}
52... Bc8 {[%clk 0:00:13.9]} 53. Ne6+ {[%clk 0:00:09.6]} 53... Kf6 {[%clk
0:00:15.1]} 54. Nxc5 {[%clk 0:00:08.5]} 54... Nxc5 {[%clk 0:00:17]} 55. Kd4
{[%clk 0:00:10.3]} 55... Nd7 {[%clk 0:00:15.9]} 56. c5 {[%clk 0:00:11.5]} 56...
Nb8 {[%clk 0:00:16.8]} 57. c6 {[%clk 0:00:12.4]} 57... Na6 {[%clk 0:00:17.4]}
58. Bc4 {[%clk 0:00:12.3]} 58... Nc7 {[%clk 0:00:15.8]} 59. Kc5 {[%clk
0:00:12.9]} 59... h4 {[%clk 0:00:16.9]} 60. gxh4 {[%clk 0:00:13.5]} 60... Ne6+
{[%clk 0:00:17.1]} 61. Bxe6 {[%clk 0:00:12.9]} 61... Kxe6 {[%clk 0:00:19]} 62.
c7 {[%clk 0:00:12.1]} 62... Kd7 {[%clk 0:00:11.3]} 63. Kd5 {[%clk 0:00:14]}
63... Kxc7 {[%clk 0:00:10.5]} 64. Ke5 {[%clk 0:00:15.9]} 64... Kd7 {[%clk
0:00:10]} 65. Kf6 {[%clk 0:00:17.8]} 65... Ke8 {[%clk 0:00:09.4]} 66. Kxg6
{[%clk 0:00:18.6]} 66... Kf8 {[%clk 0:00:10.9]} 67. h5 {[%clk 0:00:18.2]} 67...
Kg8 {[%clk 0:00:11.9]} 68. h6 {[%clk 0:00:19]} 68... Kh8 {[%clk 0:00:13.4]} 69.
h4 {[%clk 0:00:20.9]} 69... Bd7 {[%clk 0:00:14.3]} 70. h7 {[%clk 0:00:21.1]}
70... Bc8 {[%clk 0:00:15]} 71. Kh6 {[%clk 0:00:22.1]} 71... Bd7 {[%clk 0:00:11]}
72. Kg6 {[%clk 0:00:23.3]} 72... Be6 {[%clk 0:00:11.8]} 73. Kh6 {[%clk
0:00:23.9]} 73... Bf7 {[%clk 0:00:12.5]} 74. Kg5 {[%clk 0:00:21.7]} 74... Be6
{[%clk 0:00:14.1]} 75. Kg6 {[%clk 0:00:22.1]} 75... Bc8 {[%clk 0:00:15]} 76. Kh6
{[%clk 0:00:22.1]} 76... Ba6 {[%clk 0:00:16.4]} 77. Kg6 {[%clk 0:00:22.7]} 77...
Bd3 {[%clk 0:00:18.3]} 78. Kh6 {[%clk 0:00:23.5]} 78... Be2 {[%clk 0:00:19.7]}
79. Kg6 {[%clk 0:00:23.8]} 79... Bg4 {[%clk 0:00:21.6]} 80. Kh6 {[%clk
0:00:23.6]} 80... Bh3 {[%clk 0:00:22.5]} 81. Kg6 {[%clk 0:00:24.2]} 81... Bg4
{[%clk 0:00:24]} 82. Kh6 {[%clk 0:00:25.2]} 82... Bd1 {[%clk 0:00:25.6]} 83. Kg6
{[%clk 0:00:25.1]} 83... Bc2 {[%clk 0:00:27.5]} 84. Kh6 {[%clk 0:00:26.3]} 84...
Bb3 {[%clk 0:00:27.9]} 85. Kg6 {[%clk 0:00:27.4]} 85... Be6 {[%clk 0:00:29.8]}
86. Kf6 {[%clk 0:00:27.2]} 86... Bc8 {[%clk 0:00:30.2]} 87. Kg6 {[%clk
0:00:28.4]} 87... Bd7 {[%clk 0:00:31.7]} 88. Kh6 {[%clk 0:00:29.1]} 88... Be8
{[%clk 0:00:31.5]} 89. Kg5 {[%clk 0:00:28.3]} 89... Bg6 {[%clk 0:00:27.6]} 90.
Kxg6 {[%clk 0:00:26.8]} 1/2-1/2

[Event "*** MasterClass Titled Tuesday Blitz"]
[Site "Chess.com"]
[Date "2017.11.07"]
[Round "3"]
[White "LaStreetCmaMaison"]
[Black "Annawel"]
[Result "1/2-1/2"]
[WhiteElo "2599"]
[BlackElo "2784"]
[TimeControl "180+2"]
[EndTime "14:49:41 PST"]
[Termination "Game drawn by 50-move rule"]

1. b3 {[%clk 0:03:01.9]} 1... e5 {[%clk 0:02:59.9]} 2. Bb2 {[%clk 0:03:02.7]}
2... Nc6 {[%clk 0:03:01.4]} 3. e3 {[%clk 0:03:03.4]} 3... g6 {[%clk 0:03:02.3]}
4. Nf3 {[%clk 0:03:03.5]} 4... Bg7 {[%clk 0:03:03.4]} 5. d4 {[%clk 0:03:04.9]}
5... d6 {[%clk 0:03:03]} 6. dxe5 {[%clk 0:02:55.8]} 6... Nge7 {[%clk 0:03:00.2]}
7. Be2 {[%clk 0:02:33.5]} 7... O-O {[%clk 0:02:59.7]} 8. O-O {[%clk 0:02:25.2]}
8... dxe5 {[%clk 0:03:00.3]} 9. c4 {[%clk 0:02:20.3]} 9... h6 {[%clk 0:02:16.1]}
10. Nc3 {[%clk 0:02:11.7]} 10... e4 {[%clk 0:02:14.9]} 11. Nd2 {[%clk 0:02:13]}
11... f5 {[%clk 0:02:12.4]} 12. a3 {[%clk 0:02:03.3]} 12... Be6 {[%clk
0:02:10.1]} 13. Qc2 {[%clk 0:02:02.1]} 13... Qe8 {[%clk 0:01:57]} 14. Nb5 {[%clk
0:01:49.1]} 14... Rc8 {[%clk 0:01:57.5]} 15. Bxg7 {[%clk 0:01:47.9]} 15... Kxg7
{[%clk 0:01:59.4]} 16. Qc3+ {[%clk 0:01:37.3]} 16... Kh7 {[%clk 0:02:00.1]} 17.
f3 {[%clk 0:01:33.9]} 17... exf3 {[%clk 0:01:51.7]} 18. Nxf3 {[%clk 0:01:27]}
18... a6 {[%clk 0:01:48.4]} 19. Nbd4 {[%clk 0:01:27.3]} 19... Bg8 {[%clk
0:01:48.8]} 20. Rae1 {[%clk 0:01:18.7]} 20... Rd8 {[%clk 0:01:47.1]} 21. Bd3
{[%clk 0:01:18.3]} 21... Qd7 {[%clk 0:01:45.9]} 22. Rd1 {[%clk 0:01:05]} 22...
Qd6 {[%clk 0:01:44.8]} 23. b4 {[%clk 0:01:01.3]} 23... Qf6 {[%clk 0:01:43.7]}
24. Bc2 {[%clk 0:00:57.2]} 24... Ne5 {[%clk 0:01:42.6]} 25. Kh1 {[%clk
0:00:56.5]} 25... Nxc4 {[%clk 0:01:39.4]} 26. e4 {[%clk 0:00:51.8]} 26... fxe4
{[%clk 0:01:28.6]} 27. Bxe4 {[%clk 0:00:52.5]} 27... b5 {[%clk 0:01:29.5]} 28.
Rd3 {[%clk 0:00:46.3]} 28... Bd5 {[%clk 0:01:27.9]} 29. Ne6 {[%clk 0:00:35]}
29... Qxe6 {[%clk 0:01:22.1]} 30. Ng5+ {[%clk 0:00:34.6]} 30... hxg5 {[%clk
0:01:23.5]} 31. Rh3+ {[%clk 0:00:35.8]} 31... Qxh3 {[%clk 0:01:22.9]} 32. Qxh3+
{[%clk 0:00:37.4]} 32... Kg8 {[%clk 0:01:24.3]} 33. Bxd5+ {[%clk 0:00:37.2]}
33... Nxd5 {[%clk 0:01:21.6]} 34. Rxf8+ {[%clk 0:00:15.7]} 34... Rxf8 {[%clk
0:01:23.5]} 35. Qe6+ {[%clk 0:00:16.6]} 35... Kg7 {[%clk 0:01:22.7]} 36. h4
{[%clk 0:00:17.5]} 36... Nce3 {[%clk 0:01:07]} 37. hxg5 {[%clk 0:00:15.5]} 37...
Rf5 {[%clk 0:01:00.6]} 38. Qd7+ {[%clk 0:00:14.9]} 38... Kf8 {[%clk 0:00:58.1]}
39. Qd8+ {[%clk 0:00:14.6]} 39... Kf7 {[%clk 0:00:58.4]} 40. Qd7+ {[%clk
0:00:16.2]} 40... Ne7 {[%clk 0:00:59.3]} 41. Qxc7 {[%clk 0:00:17.2]} 41... Nd5
{[%clk 0:00:46.2]} 42. Qd6 {[%clk 0:00:17.2]} 42... Rxg5 {[%clk 0:00:43.7]} 43.
Qxa6 {[%clk 0:00:18.2]} 43... Nf4 {[%clk 0:00:40.6]} 44. a4 {[%clk 0:00:16.8]}
44... bxa4 {[%clk 0:00:41.8]} 45. b5 {[%clk 0:00:18.4]} 45... Ne2 {[%clk
0:00:32.2]} 46. g4 {[%clk 0:00:15.1]} 46... Rxg4 {[%clk 0:00:29.8]} 47. b6
{[%clk 0:00:16.6]} 47... Nd4 {[%clk 0:00:22.9]} 48. Qc4+ {[%clk 0:00:15.9]}
48... Kf6 {[%clk 0:00:20.4]} 49. b7 {[%clk 0:00:16.8]} 49... Nec6 {[%clk
0:00:22]} 50. Qxa4 {[%clk 0:00:10.6]} 50... Rh4+ {[%clk 0:00:23.2]} 51. Kg2
{[%clk 0:00:11.8]} 51... Rh8 {[%clk 0:00:23.2]} 52. Qa3 {[%clk 0:00:05.2]} 52...
Rb8 {[%clk 0:00:22.9]} 53. Qd6+ {[%clk 0:00:06.4]} 53... Kf5 {[%clk 0:00:24.3]}
54. Qd7+ {[%clk 0:00:05.9]} 54... Ke5 {[%clk 0:00:23]} 55. Kh3 {[%clk
0:00:04.9]} 55... Kf4 {[%clk 0:00:20.4]} 56. Qd6+ {[%clk 0:00:05.2]} 56... Ke4
{[%clk 0:00:20.5]} 57. Qxg6+ {[%clk 0:00:04.4]} 57... Kd5 {[%clk 0:00:21.4]} 58.
Qf7+ {[%clk 0:00:05.4]} 58... Kc5 {[%clk 0:00:22.6]} 59. Qc7 {[%clk 0:00:05.3]}
59... Rh8+ {[%clk 0:00:18.5]} 60. Kg4 {[%clk 0:00:05.3]} 60... Ne6 {[%clk
0:00:15.6]} 61. Qc8 {[%clk 0:00:05.1]} 61... Rxc8 {[%clk 0:00:04.7]} 62. bxc8=Q
{[%clk 0:00:06.8]} 62... Nd4 {[%clk 0:00:06.6]} 63. Kg3 {[%clk 0:00:06.3]} 63...
Kd5 {[%clk 0:00:08.5]} 64. Kf2 {[%clk 0:00:07.5]} 64... Ke4 {[%clk 0:00:10.4]}
65. Qe8+ {[%clk 0:00:08]} 65... Kd5 {[%clk 0:00:11.7]} 66. Ke3 {[%clk
0:00:08.7]} 66... Nf5+ {[%clk 0:00:13.1]} 67. Kd3 {[%clk 0:00:09.7]} 67... Ne5+
{[%clk 0:00:13.7]} 68. Kc3 {[%clk 0:00:11.1]} 68... Nd6 {[%clk 0:00:15]} 69.
Qg8+ {[%clk 0:00:10.5]} 69... Ke4 {[%clk 0:00:15.4]} 70. Qf8 {[%clk 0:00:08.5]}
70... Nb5+ {[%clk 0:00:15.6]} 71. Kd2 {[%clk 0:00:09.8]} 71... Nc4+ {[%clk
0:00:16.1]} 72. Kc2 {[%clk 0:00:09.9]} 72... Ne3+ {[%clk 0:00:15.5]} 73. Kb3
{[%clk 0:00:10.2]} 73... Nd4+ {[%clk 0:00:16.7]} 74. Ka4 {[%clk 0:00:11.2]}
74... Nd5 {[%clk 0:00:15.3]} 75. Qe8+ {[%clk 0:00:12.2]} 75... Kd3 {[%clk
0:00:16.6]} 76. Qd8 {[%clk 0:00:08.5]} 76... Kc4 {[%clk 0:00:15.9]} 77. Qc8+
{[%clk 0:00:05.8]} 77... Kd3 {[%clk 0:00:16.6]} 78. Qa6+ {[%clk 0:00:06]} 78...
Ke4 {[%clk 0:00:16.4]} 79. Qg6+ {[%clk 0:00:06.1]} 79... Ke5 {[%clk 0:00:17.4]}
80. Qg5+ {[%clk 0:00:06.3]} 80... Ke4 {[%clk 0:00:18.6]} 81. Ka3 {[%clk
0:00:06.6]} 81... Ne3 {[%clk 0:00:16.5]} 82. Kb2 {[%clk 0:00:06.6]} 82... Kd3
{[%clk 0:00:16.5]} 83. Qg6+ {[%clk 0:00:06.6]} 83... Kc4 {[%clk 0:00:17.4]} 84.
Qe4 {[%clk 0:00:07]} 84... Nd1+ {[%clk 0:00:17.3]} 85. Kc1 {[%clk 0:00:04.9]}
85... Nc3 {[%clk 0:00:17.7]} 86. Qh7 {[%clk 0:00:05.7]} 86... Nb3+ {[%clk
0:00:18]} 87. Kc2 {[%clk 0:00:07]} 87... Nd4+ {[%clk 0:00:19.4]} 88. Kd2 {[%clk
0:00:08.9]} 88... Nd5 {[%clk 0:00:14]} 89. Qh8 {[%clk 0:00:06.4]} 89... Nb3+
{[%clk 0:00:14.3]} 90. Ke2 {[%clk 0:00:07]} 90... Nd4+ {[%clk 0:00:14.9]} 91.
Kd1 {[%clk 0:00:08]} 91... Nb3 {[%clk 0:00:12.9]} 92. Qc8+ {[%clk 0:00:07.4]}
92... Kd4 {[%clk 0:00:13.1]} 93. Kc2 {[%clk 0:00:05.7]} 93... Nc5 {[%clk
0:00:13.7]} 94. Qh8+ {[%clk 0:00:07]} 94... Kc4 {[%clk 0:00:14.7]} 95. Qh4+
{[%clk 0:00:06.1]} 95... Kb5 {[%clk 0:00:16.1]} 96. Qd4 {[%clk 0:00:06.2]} 96...
Nb4+ {[%clk 0:00:14.4]} 97. Kc3 {[%clk 0:00:06.9]} 97... Na2+ {[%clk 0:00:15.7]}
98. Kb2 {[%clk 0:00:08.4]} 98... Nb4 {[%clk 0:00:17.1]} 99. Qh4 {[%clk
0:00:08.6]} 99... Nd5 {[%clk 0:00:16.4]} 100. Qh5 {[%clk 0:00:07.5]} 100... Kc4
{[%clk 0:00:13.6]} 101. Qe2+ {[%clk 0:00:04.6]} 101... Kd4 {[%clk 0:00:12.9]}
102. Qf2+ {[%clk 0:00:03.2]} 102... Kc4 {[%clk 0:00:12.8]} 103. Qc2+ {[%clk
0:00:04.7]} 103... Kd4 {[%clk 0:00:13]} 104. Qd2+ {[%clk 0:00:06.4]} 104... Kc4
{[%clk 0:00:14.5]} 105. Qe2+ {[%clk 0:00:05.3]} 105... Kd4 {[%clk 0:00:14.5]}
106. Qg4+ {[%clk 0:00:06.1]} 106... Ke5 {[%clk 0:00:10.4]} 107. Qc4 {[%clk
0:00:05.3]} 107... Ne4 {[%clk 0:00:09]} 108. Qc8 {[%clk 0:00:04.6]} 108... Kd4
{[%clk 0:00:09.9]} 109. Qh8+ {[%clk 0:00:04.9]} 109... Kc4 {[%clk 0:00:09.5]}
110. Qe5 {[%clk 0:00:06.2]} 110... Nc5 {[%clk 0:00:09.9]} 111. Qd6 {[%clk
0:00:04.7]} 111... Nd3+ {[%clk 0:00:09.9]} 112. Ka3 {[%clk 0:00:06]} 112... Nc5
{[%clk 0:00:09.8]} 113. Qc6 {[%clk 0:00:06.6]} 113... Kd4 {[%clk 0:00:09.6]}
114. Qc8 {[%clk 0:00:05]} 114... Kc4 {[%clk 0:00:07.3]} 1/2-1/2